[Event "ESP-chT Div Honor 2018"]
[Site "Linares"]
[Date "2018.08.12"]
[Round "7"]
[White "Osmak, Iulija"]
[Black "Del Rio De Angelis, Salvador G"]
[Result "1/2-1/2"]
[ECO "A40"]
[WhiteElo "2410"]
[BlackElo "2525"]
[Annotator "ChessBase"]
[PlyCount "110"]
[EventDate "2018.08.06"]
[EventType "team-tourn"]
[EventCountry "ESP"]
[SourceTitle "playchess.com"]
[Source "ChessBase"]
[SourceQuality "1"]
[TimeControl "40/5400+30:1800+30"]

1. d4 {[%emt 0:00:00]} e6 {[%emt 0:00:05]} 2. Bf4 {[%emt 0:00:00]} Nf6 {[%emt 0:01:57]} 3. e3 {[%emt 0:00:00]} Be7 {[%emt 0:01:05]} 4. h3 {[%emt 0:01:13]} O-O {[%emt 0:03:06]} 5. Nf3 {[%emt 0:00:12]} b6 {[%emt 0:00:29]} 6. Nbd2 {[%emt 0:00:55]} c5 {[%emt 0:06:46]} 7. c3 {[%emt 0:00:34]} Bb7 {[%emt 0:02:46]} 8. Bd3 {[%emt 0:00:54]} Nc6 {[%emt 0:01:02]} 9. O-O {[%emt 0:01:13]} Rc8 {[%emt 0:01:07]} 10. Bh2 {[%emt 0:04:44]} d6 {[%emt 0:03:08]} 11. Qe2 {[%emt 0:01:45]} cxd4 {[%emt 0:00:16]} 12. exd4 {[%emt 0:00:35]} Re8 {[%emt 0:00:27]} 13. Rfe1 {[%emt 0:01:54]} Bf8 {[%emt 0:00:32]} 14. Rad1 {[%emt 0:01:41]} Rc7 {[%emt 0:02:56]} 15. Ne4 {[%emt 0:17:13]} Nxe4 {[%emt 0:09:07]} 16. Bxe4 {[%emt 0:01:04]} g6 {[%emt 0:04:44]} 17. h4 {[%emt 0:03:46]} Nb8 {[%emt 0:04:32]} 18. Bxb7 {[%emt 0:02:54]} Rxb7 {[%emt 0:00:08]} 19. h5 {[%emt 0:01:02]} Nd7 {[%emt 0:02:53]} 20. hxg6 {[%emt 0:01:38]} hxg6 {[%emt 0:00:07]} 21. Bf4 {[%emt 0:06:36]} Nf6 {[%emt 0:00:33]} 22. Ng5 {[%emt 0:02:07]} Nh5 {[%emt 0:16:36]} 23. Bc1 {[%emt 0:01:46]} Qc8 {[%emt 0:08:06]} 24. Rd3 {[%emt 0:06:54]} Ng7 {[%emt 0:05:16]} 25. g4 {[%emt 0:12:53]} f6 {[%emt 0:03:06]} 26. Ne4 {[%emt 0:03:15]} Be7 {[%emt 0:00:05]} 27. Rh3 {[%emt 0:03:28]} d5 {[%emt 0:01:36]} 28. Ng3 {[%emt 0:01:21]} Kf7 {[%emt 0:01:54]} 29. Kg2 {[%emt 0:02:55]} Rh8 {[%emt 0:00:12]} 30. Bh6 {[%emt 0:03:22]} Rh7 {[%emt 0:00:17]} 31. Qf3 {[%emt 0:03:35]} b5 {[%emt 0:09:31]} 32. Ne2 {[%emt 0:05:35]} Bd6 {[%emt 0:00:58]} 33. Reh1 {[%emt 0:04:40]} Qd8 {[%emt 0:06:16]} 34. Bxg7 {[%emt 0:03:40]} Rxg7 {[%emt 0:00:10]} 35. Rh8 {[%emt 0:00:06]} Qc7 {[%emt 0:01:08]} 36. g5 {[%emt 0:01:44]} f5 {[%emt 0:00:13]} 37. Qe3 {[%emt 0:00:33]} Rb8 {[%emt 0:02:13]} 38. R8h7 {[%emt 0:00:26]} Rbg8 {[%emt 0:00:20]} 39. R7h4 {[%emt 0:00:34]} Ke7 {[%emt 0:01:08]} 40. Nf4 {[%emt 0:00:26]} Bxf4 {[%emt 0:00:05]} 41. Rxf4 {[%emt 0:30:08]} Kd7 {[%emt 0:30:44]} 42. Rfh4 {[%emt 0:00:00]} Re8 {[%emt 0:00:00]} 43. Qe2 {[%emt 0:00:00]} Kc6 {[%emt 0:00:00]} 44. a4 {[%emt 0:00:00]} a6 {[%emt 0:00:00]} 45. Ra1 {[%emt 0:00:00]} Kb6 {[%emt 0:00:00]} 46. axb5 {[%emt 0:00:00]} axb5 {[%emt 0:00:00]} 47. Qd2 {[%emt 0:00:00]} Kb7 {[%emt 0:00:00]} 48. Rh6 {[%emt 0:00:00]} e5 {[%emt 0:00:00]} 49. dxe5 {[%emt 0:00:00]} Qxe5 {[%emt 0:00:00]} 50. Rh4 {[%emt 0:00:00]} Rc7 {[%emt 0:00:00]} 51. Qd4 {[%emt 0:00:00]} Qxd4 {[%emt 0:00:00]} 52. Rxd4 {[%emt 0:00:00]} Re5 {[%emt 0:00:00]} 53. Kg3 {[%emt 0:00:00]} Rc4 {[%emt 0:00:00]} 54. Rad1 {[%emt 0:00:00]} Kc6 {[%emt 0:00:00]} 55. f3 {[%emt 0:03:25]} Rxd4 {[%emt 0:00:00]} 1/2-1/2